Cogmind - Beta 17.1 @@@ ROGUE MODE // 2026.09.07 @ 20:03:58 Player: Alicianrone Result: Destroyed by LK-DGR(R) with Subdweller Beam Cannon Performance ------------- Evolutions (0) 0 Regions Visited (2) 400 Robots Destroyed (40) 200 Value Destroyed (907) 907 Prototype IDs (0) 0 Alien Tech Used (0) 0 Bonus (0) 0 TOTAL SCORE: 1507 Bonus ------- None Cogmind --------- Core Integrity 0/250 Matter 189/300 Energy 199/200 System Corruption 0% Temperature Cool (9) Movement Treading (260) Ox1 Location -10/Subcaves Parts ------- > --- POWER (1) -------- Subdweller Power Source > --- PROPULSION (2) --- Spiked Treads Spiked Treads > --- UTILITY (2) ------ High-capacity Storage Unit Sensor Array > --- WEAPON (2) ------- Subdweller Machine Gun > --- INVENTORY (20) --- Light Nuclear Core Makeshift Power Source Wheel Compact Wheel Compact Wheel Subdweller Monowheel Structural Scanner Subdweller Optics Seismic Detector Scrap Shield EM Pulse Gun Battle Cannon Grenade Launcher Datajack Multitool Piercing Trap Peak State ------------ > --- POWER ------------ Subdweller Power Source > --- PROPULSION ------- Spiked Treads Spiked Treads > --- UTILITY ---------- High-capacity Storage Unit Sensor Array > --- WEAPON ----------- Subdweller Beam Cannon Battle Cannon > --- INVENTORY -------- Light Nuclear Core Makeshift Power Source Wheel Compact Wheel Compact Wheel Subdweller Monowheel Structural Scanner Subdweller Optics Seismic Detector Scrap Shield EM Pulse Gun Subdweller Laser Subdweller Machine Gun Subdweller Machine Gun Grenade Launcher Grenade Launcher Datajack Piercing Trap [Rating: 15] Favorites ----------- Power Subdweller Power Source Engine Subdweller Power Source Power Core Light Nuclear Core Propulsion Compact Wheel Treads Spiked Treads Wheel Compact Wheel Utility High-capacity Storage Unit Device Sensor Array Storage High-capacity Storage Unit Protection Backup Plating I Weapon Subdweller Beam Cannon Energy Gun EM Pulse Gun Energy Cannon Subdweller Beam Cannon Ballistic Gun Assault Rifle Ballistic Cannon Battle Cannon Launcher Grenade Launcher Special Melee Weapon Datajack Build | -11 -10 -10 ------- Run | Yrd Mat Sub Slots Evolved . | . . . Power . | . . . Propulsion . | . . . Utility . | . . . Weapon . | . . . Parts Attached 28 | 7 10 11 Power 3 | 1 . 2 Engine 2 | 1 . 1 Core 1 | . . 1 Reactor . | . . . Propulsion 6 | 2 2 2 Treads 4 | . 2 2 Leg . | . . . Wheel 2 | 2 . . Hover . | . . . Flight . | . . . Utility 7 | 2 3 2 Device 3 | 1 1 1 Storage 2 | 1 1 . Processor . | . . . Hackware . | . . . Protection 2 | . 1 1 Artifact . | . . . Weapon 12 | 2 5 5 Energy Gun 4 | . 3 1 Energy Cannon 1 | . . 1 Ballistic Gun 4 | 2 . 2 Ballistic Cannon 1 | . . 1 Launcher 1 | . 1 . Special Weapon . | . . . Impact Weapon . | . . . Slashing Weapon . | . . . Piercing Weapon . | . . . Special Melee Weapon 1 | . 1 . Unidentified Prototypes . | . . . Parts Lost 6 | . 2 4 Power . | . . . Propulsion 1 | . . 1 Utility 3 | . 1 2 Weapon 2 | . 1 1 Highest Loss Streak 2 | . 1 2 To Critical Strikes . | . . . Average Backups 15 | 2 11 16 Power 1 | . . 1 Propulsion 4 | 1 3 4 Utility 3 | . 3 4 Weapon 4 | . 3 4 Tool/Special . | . . . Unused Backups 14 | . 2 12 Power 1 | . . 1 Propulsion 5 | . 2 3 Utility 4 | . . 4 Weapon 3 | . . 3 Tool/Special 1 | . . 1 Average Slot Usage (%) 99 | . 99 99 Engine 14 | . 14 14 Treads 11 | . 2 13 Wheel 16 | . 25 14 Device 12 | . 13 12 Storage 14 | . 14 14 Energy Gun 7 | . 10 6 Energy Cannon 8 | . . 9 Ballistic Gun 8 | . 15 6 Ballistic Cannon 4 | . . 4 Peak Build Rating 15 | 7 8 15 Average Rating 11 | 4 7 12 On Entrance 5 | . 7 8 Avg Prop Armor Cover (%) 15 | . . 15 Naked Turns . | . . . Heaviest Build 58 | 15 50 58 Greatest Support 40 | 26 40 40 Greatest Overweight (x) 3 | . 1 3 Average Overweight (x) 2 | . . 2 Largest Inventory Capacity 20 | 8 20 20 Average Capacity 19 | 7 18 20 Most Carried 20 | 3 16 20 Average Carried 16 | 2 11 17 Final Capacity 20 | 8 20 20 Final Carried 17 | 3 14 17 Class Distribution -------------------- 63% | Mutant 36% | Derelict-Mutant Dominant Class ---------------- Mutant | -10/Materials Mutant | -10/Subcaves Resources | -11 -10 -10 ----------- Run | Yrd Mat Sub Matter Collected 1617 | 300 552 765 Remotely . | . . . Salvage Created 1380 | 93 893 394 Parts 78 | 5 46 27 Haulers Intercepted 2 | . 2 . Recyclers Shooed 1 | . 1 . Parts Field Recycled . | . . . Retrieved Matter . | . . . Parts Self-Destructed 6 | . . 6 Prevented . | . . . Parts Restored . | . . . Kills | -11 -10 -10 ------- Run | Yrd Mat Sub Combat Hostiles Destroyed 27 | . 15 12 Guns 14 | . 12 2 Cannons 6 | . . 6 AOE 7 | . 3 4 Classes Destroyed 10 | 2 5 3 Worker 1 | . 1 . Tunneler 2 | 2 . . Hauler 2 | . 2 . Recycler 3 | 1 2 . Turret 2 | . . 2 Watcher 3 | . 3 . Swarmer 10 | . 6 4 Grunt 9 | . 9 . Artisan 1 | . . 1 Subdweller 8 | . . 8 Best Kill Streak 12 | 2 12 4 Combat Bots Only 9 | . 9 4 Max Kills in Single Turn 2 | 1 2 2 Gunslinging . | . . . Exploded 2 | . 1 2 Melee . | . . . Uniques/NPCs Destroyed . | . . . Combat | -11 -10 -10 -------- Run | Yrd Mat Sub Hostile Shots Fired 162 | . 64 98 Missed 57 | . 25 32 Hits 105 | . 39 66 Projectile 105 | . 39 66 Damage Taken 1387 | . 440 947 Core 253 | . 66 187 Absorbed by Shields . | . . . Core Remaining (%) 100 | 100 . . Volleys Fired 283 | 5 74 204 Largest 2 | 2 2 2 Hottest 100 | 40 60 100 Shots Fired 374 | 10 144 220 Gun 298 | 10 140 148 Cannon 66 | . . 66 Launcher 10 | . 4 6 Special . | . . . Kinetic 188 | 10 74 104 Thermal 91 | . . 91 Explosive 10 | . 4 6 Electromagnetic 85 | . 66 19 Robot Hit Streak 11 | 7 9 11 Robot Miss Streak 4 | 1 4 3 Penetration Max . | . . . Secondary Targets . | . . . Shots Hit Robots 146 | 9 88 49 Core Hits 72 | 4 40 28 Critical Kills . | . . . Critical Parts Destroyed 1 | 1 . . Critical Strikes 2 | 1 1 . Destroy 1 | 1 . . Corrupt 1 | . 1 . Melee Attacks 2 | . 2 . Impact . | . . . Slashing . | . . . Piercing . | . . . Sneak Attacks 2 | . 2 . Combat Hostiles . | . . . Follow-up Attacks . | . . . Damage Inflicted 2569 | 112 1327 1130 Guns 1723 | 112 1170 441 Cannons 420 | . . 420 Explosions 426 | . 157 269 Melee . | . . . Ramming . | . . . Kinetic 908 | 112 455 341 Thermal 402 | . 47 355 Explosive 379 | . 110 269 Electromagnetic 880 | . 715 165 Impact . | . . . Slashing . | . . . Piercing . | . . . Highest Corruption . | . . . Average Corruption . | . . . Corruption Purged . | . . . Corruption Blocked . | . . . Overload Shots . | . . . Overflow Damage 15 | . 8 7 Projectiles 7 | . . 7 Explosions 8 | . 8 . Melee . | . . . Knockbacks . | . . . Impact . | . . . Kinetic . | . . . Secondary . | . . . Self-Inflicted Damage 58 | . 36 22 Shots 2 | . 1 1 Rammed . | . . . Targets Rammed . | . . . Kicked . | . . . Crushed . | . . . Highest Temperature 57 | . 57 10 Average Temperature 16 | . 18 3 Received Heat Transfer 516 | . 174 342 Siege Activations . | . . . Martial Activations . | . . . Shielding Activations . | . . . Robots Disrupted 1 | . . 1 Combat Hostiles . | . . . Robots Corrupted . | . . . Combat Hostiles . | . . . Parts Fried 1 | . 1 . Impact Corruptions . | . . . Robots Melted . | . . . Combat Hostiles . | . . . Parts Melted 2 | . 1 1 Heat Transferred 582 | . 100 482 Parts Sabotaged . | . . . Parts Stolen . | . . . Parts Stripped . | . . . Power Chain Reactions 1 | . 1 . Alert | -11 -10 -10 ------- Run | Yrd Mat Sub Maximum Alert Level 1 | . 1 . Low Security (%) 77 | 100 76 . Level 1 22 | . 23 . Level 2 . | . . . Level 3 . | . . . Level 4 . | . . . Level 5 . | . . . High Security . | . . . Max Security . | . . . Peak Influence 249 | 10 249 . Initial . | . . . Average 114 | 1 120 . Influence Increases 820 | 15 565 240 Destroy 0b10 Robot/C 420 | . 300 120 Destroy 0b10 Robot/NC 55 | 15 40 . Destroy Leader 80 | . 80 . Successful Hack 27 | . 27 . Select Force Hacks 60 | . 60 . Disable Machine 15 | . 15 . Destroy Structure 28 | . 28 . Lose Combat Pursuer 135 | . 15 120 Influence Decreases 692 | 15 346 331 Entered New Map 106 | . . 106 Time Decay 536 | 15 326 195 Lost Part 50 | . 20 30 Squads Dispatched 3 | . 3 . Investigation 2 | . 2 . Extermination . | . . . Reinforcement 1 | . 1 . Assault . | . . . Garrison . | . . . Intercept . | . . . Searches Triggered . | . . . Construction Impeded . | . . . Haulers Reinforced . | . . . Active Scanning Responses . | . . . Cargo Convoy Interrupts . | . . . Stealth | -11 -10 -10 --------- Run | Yrd Mat Sub Distress Signals 3 | . 3 . Communications Jammed . | . . . Distress Signals . | . . . Times Spotted 37 | . 22 15 Peak Tracking Total 6 | . 5 6 Tactical Retreats 4 | . 1 3 Traps | -11 -10 -10 ------- Run | Yrd Mat Sub Traps Triggered 1 | . . 1 Indirectly . | . . . Trap Hack Attempts 201 | . 130 71 Triggered 1 | . 1 . Disarmed 1 | . . 1 Reprogrammed 19 | . 12 7 Reused . | . . . Traps Extracted . | . . . Installed . | . . . Triggered . | . . . Most Traps Carried 1 | . . 1 Machines | -11 -10 -10 ---------- Run | Yrd Mat Sub Machines Disabled 3 | . 1 2 Max in Single Turn 1 | . 1 1 Machines Repaired . | . . . Machines Dismantled . | . . . Machines Sabotaged . | . . . Overloaded Fab Kills . | . . . Hacking | -11 -10 -10 --------- Run | Yrd Mat Sub Machines Accessed 11 | . 10 1 Terminals 7 | . 7 . Fabricators . | . . . Repair Stations 1 | . 1 . Recycling Units 2 | . 2 . Scanalyzers . | . . . Garrison Access . | . . . Total Hacks 30 | . 29 1 Successful 20 | . 19 1 Failed 10 | . 10 . Catastrophic . | . . . Database Lockouts . | . . . Manual 23 | . 23 . Terminals 25 | . 25 . Fabricators . | . . . Repair Stations 2 | . 2 . Recycling Units 2 | . 2 . Scanalyzers . | . . . Garrison Access . | . . . Terminal Hacks 7 | . 6 1 Open Door 1 | . . 1 Terminal Index 1 | . 1 . Locate Traps 3 | . 3 . Reprogram Traps 1 | . 1 . Hauler Manifests 1 | . 1 . Fabricator Hacks . | . . . Repair Station Hacks 2 | . 2 . Refit 2 | . 2 . Recycling Unit Hacks . | . . . Scanalyzer . | . . . Garrison Access Hacks . | . . . Unauthorized Hacks 11 | . 11 . Terminals 9 | . 9 . Assimilate 1 | . 1 . Botnet 2 | . 2 . Operators 1 | . 1 . Skim 5 | . 5 . Fabricators . | . . . Repair Stations . | . . . Recycling Units 2 | . 2 . Tunnel 2 | . 2 . Scanalyzers . | . . . Garrison Access . | . . . Data Cores Recovered . | . . . Used . | . . . Hacking Detections 7 | . 7 . Full Trace Events . | . . . Feedback Events . | . . . Feedback Blocked . | . . . Robot Schematics Acquired . | . . . Robots Built . | . . . Authchips . | . . . Time . | . . . Total Robot Build Rating . | . . . Part Schematics Acquired . | . . . Parts Built . | . . . Authchips . | . . . Time . | . . . Total Part Build Rating . | . . . Part Studies Acquired . | . . . Parts Repaired . | . . . Time . | . . . Parts Recycled . | . . . Recycled Matter . | . . . Retrieved Matter . | . . . Retrieved Components . | . . . Parts Scanalyzed . | . . . Part Schematics Acquired . | . . . Parts Damaged . | . . . Bothacking | -11 -10 -10 ------------ Run | Yrd Mat Sub Used RIF Installer . | . . . Robots Hacked . | . . . Non-combat . | . . . Combat . | . . . Robot Hacks Applied . | . . . Relay Couplers Released . | . . . Fabnet Peak Effective % . | . . . Robots Rewired 1 | . . 1 Allies Hacked . | . . . Hacks Repelled . | . . . Allies | -11 -10 -10 -------- Run | Yrd Mat Sub Total Allies 1 | . . 1 Largest Group 1 | . . 1 Highest-Rated Group 15 | . . 15 Highest-Rated Ally 15 | . . 15 Total Orders 6 | . . 6 STAY 2 | . . 2 ROAM 1 | . . 1 FOLLOW 3 | . . 3 Ally Attacks . | . . . Total Damage . | . . . Kills . | . . . Allies Corrupted . | . . . Allies Melted . | . . . Intel | -11 -10 -10 ------- Run | Yrd Mat Sub Active Infowar (turns) 7742 | 12 1318 6412 Sensors 5382 | . . 5382 Seismic 2360 | 12 1318 1030 Robot Analysis Total . | . . . Derelict Logs Recovered 1 | . . 1 Drone Launches . | . . . Drone Recoveries . | . . . Exploration | -11 -10 -10 ------------- Run | Yrd Mat Sub Turns Passed 8461 | 73 1411 6977 Spaces Moved 4575 | 52 865 3658 Core 2 | 2 . . Treads 286 | . 5 281 Legs . | . . . Wheels 4287 | 50 860 3377 Hover . | . . . Flight . | . . . Fastest Speed 50 | 50 90 105 Average Speed 139 | 86 103 148 Slowest Speed 260 | 90 240 260 Overloaded Moves . | . . . Propulsion Burnouts . | . . . Robots Hopped . | . . . Potential Cave-ins 4 | . . 4 Cave-ins Triggered . | . . . Exploration Rate (%) 59 | 3 96 79 Regions Visited 2 Branch Regions 1 Pre-discovered Areas 4 | . 2 2 Known Exits Taken . | . . . Unknown Exits Taken 2 | 1 1 . Scrap Searched 5 | . . 5 Spaces Dug 44 | . . 44 Terrain Destroyed 106 | . 27 79 Melee . | . . . Projectile 62 | . . 62 AOE 44 | . 27 17 Terrain Rammed . | . . . Walls Destroyed . | . . . Machines Disabled . | . . . Actions | -11 -10 -10 --------- Run | Yrd Mat Sub Total 6268 | 66 1224 4978 Wait 1066 | . 104 962 Move 4573 | 51 864 3658 Hop . | . . . Pick Up 33 | 3 14 16 Fast Attach 8 | 7 . 1 Attach 9 | . 4 5 Detach 3 | . 2 1 Swap 73 | . 26 47 Drop 16 | . 4 12 Fire 283 | 5 74 204 Melee 2 | . 2 . Ram . | . . . Kick . | . . . Crush . | . . . Escape Stasis . | . . . Rewire 1 | . . 1 Trap 201 | . 130 71 Miscellaneous . | . . . Route ------- -11/Scrapyard -10/Materials (discovered 6 exits: [*Mat x3] / [*Min x2] / *Sub) -10/Subcaves (discovered 3 exits: [*Mat x2] / [*Rec]) History --------- Turn | Location | Event 9 | -11/Scrapyard | Discovered new exit (range 15) 74 | -11/Scrapyard | Entered Materials 272 | -10/Materials | Discovered new exit (range 15) 301 | -10/Materials | Build established: Mutant 494 | -10/Materials | Discovered new exit (range 12) 617 | -10/Materials | Discovered new exit (range 6) 626 | -10/Materials | Destroyed 9 combat bots 804 | -10/Materials | Discovered new exit (range 11) 883 | -10/Materials | Discovered new exit (range 13) 1017 | -10/Materials | Learned Storage terminal intel 1139 | -10/Materials | Learned 4 Recycling zone layouts 1186 | -10/Materials | Loaded intel: 13 trap records 1201 | -10/Materials | Discovered new exit (range 16) 1252 | -10/Materials | Learned Storage security intel 1293 | -10/Materials | Learned location of 1 exit from Storage 1402 | -10/Materials | Learned 4 Recycling zone layouts 1485 | -10/Materials | Entered Subcaves 1511 | -10/Subcaves | Learned location of Zion (-6) 1511 | -10/Subcaves | Met a Zionite searching for "candidates" 1600 | -10/Subcaves | A swath of the cavern ceiling suddenly collapsed 2437 | -10/Subcaves | Discovered new exit (range 9) 2466 | -10/Subcaves | Disturbed a concealed Subdweller 2649 | -10/Subcaves | A swath of the cavern ceiling suddenly collapsed 2682 | -10/Subcaves | Shifting Twisted Machinery released Spk. Treads 2686 | -10/Subcaves | Shifting Twisted Machinery released Flamer 2946 | -10/Subcaves | Disturbed a concealed Subdweller 3315 | -10/Subcaves | Discovered new exit (range 14) 3327 | -10/Subcaves | Shifting Twisted Machinery released Piercing Trap 3330 | -10/Subcaves | Shifting Twisted Machinery released Mak. Power Source 3628 | -10/Subcaves | Build established: Derelict-Mutant 4255 | -10/Subcaves | Discovered new exit (range 15) 4260 | -10/Subcaves | Core integrity fell below 50% 5686 | -10/Subcaves | Build established: Mutant 6797 | -10/Subcaves | Ambushed by Subdweller buried in earth 7116 | -10/Subcaves | Build established: Derelict-Mutant 8192 | -10/Subcaves | Build established: Mutant 8447 | -10/Subcaves | Ambushed by Subdweller buried in earth 8447 | -10/Subcaves | Ambushed by Subdweller buried in earth 8457 | -10/Subcaves | Core integrity fell below 20% 8462 | -10/Subcaves | Destroyed by LK-DGR(R) with Subdweller Beam Cannon Last Messages --------------- used throughout all runs. 07676_ Triggered Piercing Trap. 07676_ Spikes shoot up from the floor. 07676_ Critical hit (Impale). 07776_ Acquired 8 matter. 07796_ Acquired 15 matter. 07881_ Sub. Beam Cannon shoots sparks and powers down. 07883_ Dropped Broken Sub. Beam Cannon. 07887_ Subatomizers dissect the Broken Sub. Beam Cannon. 08037_ Acquired 42 matter. 08157_ Acquired 15 matter. 08162_ Acquired 5 matter. 08236_ EW-HDZ(u) tweaks Twisted Machinery. 08285_ EW-HDZ(u) builds Twisted Machinery. 08300_ EW-HDZ(u) tweaks Twisted Machinery. 08448_ LK-DGR(R): "ARGHSUB!" 08448_ 9W-VHH(R): "FREEEEDUMB!" 08459_ Sub. Machine Gun destroyed. Map ----- +----------------------------------------------------+ | ????????????????????????????????????##""" ##????? | | ????????????????????????????????????#"" "" ####?? | | ????????????????????????????????????# " ### | | ????????????????????????????????????## " " # | | ?????????????????????????????????????## """" ## | | ??????????????????????????????????????# """ ##? | | ??????????????????????????????????????####" ### | | ?????????????????????????????????????????## | | ???????????????????????????????????????#### | | ????????????????????????????????????#### "# | | ????????????????????????????????????# # " | | ???????????????????????????????????### ## " | | ???????????????????????????????????# # # | | ???????????????????????????????????######### | | ??????????????????????????????????????????## ## | | ????????????????????????????????????####### ## | | ??????????????????????????????????### ## # #? | | ????????????????????????????????### # ##? | | ????????????????????????????????# # #?? | | ???????????????????????###??????### ### ## ##?? | | ???????????????????????# ###??## # ##?#### ##??? | | ???????????????????????# #### ## #?????## ##???? | | ???????????????????????# O # ##??????###????? | | ???????????????????????# # # ###??????????????? | | ?????????????????????### ## ###????????????????? | | ?????????????????????# R@ ####??????????????????? | | ?????????????????????### R #?????????????????????? | | ???????????????????????## ##?????????????????????? | | ????????????????????????# #??????????????????????? | | ????????????????????????###??????????????????????? | | ?????????????????????????????????????????????????? | | ?????????????????????????????????????????????????? | | ?????????????????????????????????????????????????? | | ?????????????????????????????????????????????????? | | ?????????????????????????????????????????????????? | | ?????????????????????????????????????????????????? | | ?????????????????????????????????????????????????? | | ?????????????????????????????????????????????????? | | ?????????????????????????????????????????????????? | | ?????????????????????????????????????????????????? | | ?????????????????????????????????????????????????? | | ?????????????????????????????????????????????????? | | ?????????????????????????????????????????????????? | | ?????????????????????????????????????????????????? | | ?????????????????????????????????????????????????? | | ?????????????????????????????????????????????????? | | ?????????????????????????????????????????????????? | | ?????????????????????????????????????????????????? | | ?????????????????????????????????????????????????? | | ?????????????????????????????????????????????????? | +----------------------------------------------------+ Best States ------------- Heat Dissipation 25 Energy Generation 10 Energy Capacity 250 Matter Stores 300 Matter Capacity 300 Sight Range 16 Robot Scan Range 14 Terrain Scan Density 10 Armor Coverage 80 Evasion (%) 44 Recoil Reduction 2 Item Schematics ----------------- None Robot Schematics ------------------ None Fabricated ------------ Nothing Repaired ---------- Nothing Studied --------- None Alien Tech Used ----------------- None Achievements -------------- None Challenges ------------ None Game ------ Seed NavigationTechCloak Manual? 0 Play Time 00:39:11 Cumulative 1075.7 hours Start 2026.09.07 @ 19:23:58 End 2026.09.07 @ 20:03:58 Sessions 1 Manual Loads 0 Difficulty Rogue Special Mode None Game No. 298 Rogue 298 Adventurer 0 Explorer 0 Win Type - Total 49 Types 14/11/12/2/2/0/4/1/1/2 Lore% 97 Gallery% 91 Achievement% 87 Wizard Run 0 Options --------- Layout 1 ASCII 0 Keyboard 0 Movement Mouse Keybinds 0 Fullscreen 2 Font 32/SmallcapsGlow Map View 50x35 Zoom Use 0% Tactical HUD 1 Map Filters NONE Filters NONE Steam 1 RUN: 73e57038-02e1-46ed-abe9-22d575053fd1